[Event "87th Spanish Championship 2022"]
[Site "Linares"]
[Date "2022.08.16"]
[Round "7.26"]
[White "Rey Martinez, Jaime"]
[Black "Valmana Canto, Jaime"]
[Result "1/2-1/2"]
[ECO "C15"]
[WhiteElo "2117"]
[BlackElo "2406"]
[Annotator "TA"]
[PlyCount "81"]
[EventDate "2022.08.11"]
[EventType "swiss"]
[EventCountry "ESP"]
[SourceTitle "playchess.com"]
[Source "ChessBase"]
[SourceQuality "1"]
[TimeControl "5400+30"]

{[%evp 13,81,18,27,12,8,24,45,41,54,32,34,33,46,37,42,22,36,19,35,20,19,15,59,62,60,51,67,41,43,16,24,19,31,31,83,74,77,16,45,18,28,12,13,19,19,18,26,16,34,40,40,40,25,7,78,78,78,53,79,72,79,0,0,0,79,0,0,0,60,0]} 1. e4 e6 {[%emt 0:08:37]} 2. d4 {[%emt 0:00:29]} d5 {[%emt 0:00:07]} 3. Nc3 {[%emt 0:00:35]} Bb4 {[%emt 0:04:22]} 4. Nge2 {[%emt 0:01:37]} dxe4 {[%emt 0:03:17]} 5. a3 {[%emt 0:00:10]} Be7 {[%emt 0:14:57]} 6. Nxe4 {[%emt 0:00:15]} Nf6 {[%emt 0:00:08]} 7. Nxf6+ {[%emt 0:00:31] The modern move.} Bxf6 {[%emt 0:00:09]} 8. Be3 {[%emt 0:00:35] C15: French: 3 Nc3 Bb4: Unusual White 4th moves.} O-O {[%emt 0:07:37]} 9. Qd2 {[%emt 0:00:28]} e5 {[%emt 0:11:12]} 10. O-O-O {[%emt 0:03:08]} exd4 {[%emt 0:10:31]} 11. Bxd4 {[%emt 0:01:53]} (11. Nxd4 {with more complications.} Qe7 12. Bc4 Rd8 13. Qe2) 11... Nc6 {[%emt 0:00:15] [#]} 12. Bxf6 $146 {[%emt 0:02:56]} ({Predecessor:} 12. Bc5 Qxd2+ 13. Rxd2 Rd8 14. Rxd8+ Nxd8 15. Bd4 Bxd4 16. Nxd4 {½-½ (16) Gheorghiu,F-Hort,V Siegen 1970}) 12... Qxf6 {[%emt 0:00:08]} 13. Qf4 {[%emt 0:00:45]} Qe5 {[%emt 0:03:44]} 14. Qxe5 {[%emt 0:04:52]} (14. Qg3 {looks sharper.} Be6 15. Nc3 Rad8 16. Bd3) 14... Nxe5 15. f3 {[%emt 0:02:43] Inhibits Ng4.} b6 {[%emt 0:02:04]} 16. Nc3 {[%emt 0:04:36]} Bb7 {[%emt 0:01:00][%cal Oe5f3]} 17. Be2 {[%emt 0:00:17]} h5 {[%emt 0:03:10]} 18. Rhe1 {[%emt 0:01:50]} Rfe8 {[%emt 0:12:37]} 19. Bb5 {[%emt 0:01:28]} c6 {[%emt 0:00:08]} 20. Bf1 {[%emt 0:01:23]} Ng6 {[%emt 0:02:38]} 21. g3 {[%emt 0:04:09]} c5 {[%emt 0:00:33]} 22. f4 {[%emt 0:01:56]} Bf3 {[%emt 0:06:31]} 23. Be2 {[%emt 0:00:30]} Bg4 {[%emt 0:00:03]} (23... Bxe2 $14 24. Rxe2 Rxe2 25. Nxe2 Re8) 24. Bxg4 $16 {[%emt 0:04:25]} hxg4 {[%emt 0:00:06]} 25. Ne4 {[%emt 0:00:16]} ({White should play} 25. Nd5 $16) 25... Rad8 {[%emt 0:01:57]} 26. Rxd8 {[%emt 0:02:12]} Rxd8 $14 {[%emt 0:00:02][%mdl 4096] Endgame KRN-KRN} 27. Nf2 {[%emt 0:00:14]} f5 {[%emt 0:00:24]} 28. h3 {[%emt 0:00:35]} gxh3 {[%emt 0:01:03]} 29. Nxh3 {[%emt 0:00:05]} Rd7 {[%emt 0:00:10]} 30. Ng5 {[%emt 0:02:54]} Re7 {[%emt 0:00:03] Prevents Re8+.} 31. Rd1 {[%emt 0:01:39]} Nf8 $1 {[%emt 0:00:09]} 32. Rd8 {[%emt 0:01:37]} g6 $1 {[%emt 0:00:08]} 33. Nf3 Re3 {[%emt 0:06:47]} (33... Kg7 $1 $11) 34. Ne5 $16 {[%emt 0:04:24] [#] aiming for Nxg6.} Kg7 {[%emt 0:00:06]} 35. Ra8 {[%emt 0:05:31] White is more active.} Rxg3 {[%emt 0:01:03]} 36. Rxa7+ {[%emt 0:00:04]} Kh6 {[%emt 0:00:12]} 37. Nf7+ {[%emt 0:00:34]} Kh5 {[%emt 0:00:44]} 38. Ne5 {[%emt 0:00:17]} Kh6 $1 {[%emt 0:01:43]} 39. Nf7+ {[%emt 0:00:05]} Kh5 {[%emt 0:00:04]} 40. Ne5 {[%emt 0:00:04] [#] Threatens to win with Rf7.} Kh6 $1 {[%emt 0:01:07]} 41. Nf7+ {[%emt 0:00:04] Weighted Error Value: White=0.12 (very precise) /Black=0.10 (very precise)} (41. Re7 $14) 1/2-1/2

[Event "87th Spanish Championship 2022"]
[Site "Linares"]
[Date "2022.08.16"]
[Round "7.27"]
[White "Perez Guerra, Raul"]
[Black "Gonzalez Castillo, Jose Javier"]
[Result "1-0"]
[ECO "B24"]
[WhiteElo "2276"]
[BlackElo "2009"]
[Annotator "NA RC"]
[PlyCount "30"]
[EventDate "2022.08.11"]
[EventType "swiss"]
[EventCountry "ESP"]
[SourceTitle "playchess.com"]
[Source "ChessBase"]
[SourceQuality "1"]
[TimeControl "5400+30"]

1. e4 {[%emt 0:00:00]} c5 {[%emt 0:00:00]} 2. Nc3 {[%emt 0:00:28]} Nc6 {[%emt 0:00:00]} 3. g3 {[%emt 0:00:30]} g6 {[%emt 0:00:21]} 4. Bg2 {[%emt 0:00:05]} Bg7 {[%emt 0:00:05]} 5. Nge2 {[%emt 0:01:33]} d6 {[%emt 0:00:23]} 6. a3 {[%emt 0:03:14]} Rb8 {[%emt 0:03:54]} 7. d3 {[%emt 0:03:07]} b5 {[%emt 0:00:34]} 8. Rb1 {[%emt 0:00:16]} a5 {[%emt 0:04:48]} 9. a4 b4 {[%emt 0:00:12]} 10. Nb5 {[%emt 0:00:15]} Ba6 11. c4 {[%emt 0:00:31]} h5 {[%emt 0:00:36]} 12. f4 h4 {[%emt 0:03:21]} 13. g4 {[%emt 0:18:48]} h3 {[%emt 0:00:53]} 14. Bf3 {[%emt 0:00:30]} Bxb5 {[%emt 0:00:30]} 15. axb5 {[%emt 0:00:30]} Nd4 {[%emt 0:00:30]} 1-0

[Event "87th Spanish Championship 2022"]
[Site "Linares"]
[Date "2022.08.16"]
[Round "7.28"]
[White "Garcia Escoda, Marc"]
[Black "Luque Saiz, Andres"]
[Result "0-1"]
[ECO "C03"]
[WhiteElo "2130"]
[BlackElo "2289"]
[Annotator "TA"]
[PlyCount "68"]
[EventDate "2022.08.11"]
[EventType "swiss"]
[EventCountry "ESP"]
[SourceTitle "playchess.com"]
[Source "ChessBase"]
[SourceQuality "1"]
[TimeControl "5400+30"]

{[%evp 17,68,78,91,68,79,75,93,85,105,85,87,70,80,59,70,41,48,48,60,8,14,18,27,10,22,-144,-143,-136,-140,-153,-153,-233,-236,-314,-327,-305,-252,-338,-336,-389,-344,-343,-312,-306,-307,-370,-340,-361,-354,-387,-433,-393,-400]} 1. e4 {[%emt 0:00:01]} e6 {[%emt 0:00:08]} 2. d4 {[%emt 0:00:09]} d5 {[%emt 0:00:05]} 3. Nd2 {[%emt 0:00:13]} h6 {[%emt 0:00:05]} 4. Bd3 {[%emt 0:00:52]} Nf6 {[%emt 0:02:54]} 5. e5 {[%emt 0:00:13]} Nfd7 {[%emt 0:00:04]} 6. Ne2 {[%emt 0:01:03]} c5 {[%emt 0:00:30]} 7. c3 {[%emt 0:00:02]} Nc6 {[%emt 0:00:12]} 8. O-O {[%emt 0:00:24]} Qb6 {[%emt 0:01:41]} 9. Nf3 {[%emt 0:00:20]} Be7 {[%emt 0:01:00]} 10. Bb1 {[%emt 0:08:23] C06: French Tarrasch: 3...Nf6 4 e5 Nfd7 5 Bd3 main lines.} Qc7 {[%emt 0:06:48]} 11. Nf4 {[%emt 0:05:51] [#]} cxd4 $146 {[%emt 0:13:50]} ({Predecessor:} 11... b6 12. b3 Bb7 13. Qe2 O-O-O 14. Bd3 Kb8 15. Bb2 Rc8 16. Rfc1 Qd8 17. Ba6 h5 18. Bxb7 Kxb7 {½-½ (73) Lim,B (1995)-Nyberg,M (1941) Auckland 2014}) 12. cxd4 {[%emt 0:00:51] White is better.} b6 {[%emt 0:05:00]} 13. Be3 {[%emt 0:16:18]} Ba6 {[%emt 0:04:47]} 14. Re1 {[%emt 0:00:18]} g5 {[%emt 0:12:36]} 15. Nh5 {[%emt 0:03:02]} O-O-O {[%emt 0:02:20]} 16. Bd3 {[%emt 0:13:03]} Bxd3 {[%emt 0:01:46]} 17. Qxd3 {[%emt 0:00:02]} Kb7 {[%emt 0:00:06]} 18. Rac1 {[%emt 0:00:53]} (18. a3 $14) 18... Rc8 $11 {[%emt 0:00:33]} 19. a3 {[%emt 0:04:35]} Qd8 {[%emt 0:04:31]} 20. b4 {[%emt 0:15:19]} Qg8 {[%emt 0:01:16]} 21. Re2 $2 {[%emt 0:05:58] [#]} ({Reject} 21. Qb5 Qg6 22. Ng3 a6 $15) ({White should try} 21. b5 $11 Na5 22. Rxc8 Kxc8 23. Qc2+ Kb8 24. Rc1) 21... Qg6 $17 {[%emt 0:03:24]} 22. Qxg6 {[%emt 0:00:02]} fxg6 {[%emt 0:00:05]} 23. Ng3 {[%emt 0:00:20]} g4 {[%emt 0:00:38]} 24. Ne1 {[%emt 0:00:11] [#]} (24. b5 $17 gxf3 25. bxc6+ Rxc6 26. Ra2) 24... Nxd4 $1 $19 {[%emt 0:00:46][%mdl 512]} 25. Rb2 {[%emt 0:02:15] Rxc8 is the strong threat.} (25. Ra2 Nc6) 25... Rxc1 {[%emt 0:09:23]} 26. Bxc1 {[%emt 0:00:02]} g5 {[%emt 0:05:01]} 27. Nd3 {[%emt 0:00:47]} Rc8 {[%emt 0:00:28][%cal Od7e5] White must now prevent ...Nxe5!} 28. Be3 {[%emt 0:00:58]} Nc6 {[%emt 0:00:57]} 29. Re2 {[%emt 0:00:09]} Bf8 {[%emt 0:00:58]} ({Not} 29... Ndxe5 $2 30. Nxe5 Nxe5 31. Bxb6 Rc1+ 32. Nf1 $19) 30. h3 {[%emt 0:09:29]} gxh3 {[%emt 0:04:45]} ({Worse is} 30... Ndxe5 31. Nxe5 Nxe5 32. Bxg5 $19) 31. gxh3 {[%emt 0:00:02]} Ncxe5 {[%emt 0:01:01]} 32. Nxe5 {[%emt 0:00:19]} Nxe5 {[%emt 0:00:04]} 33. Kg2 {[%emt 0:01:21]} Ng6 {[%emt 0:02:40]} 34. Bd2 {[%emt 0:01:01]} e5 {[%emt 0:01:52] Weighted Error Value: White=0.41/Black=0.09 (flawless)} 0-1

[Event "87th Spanish Championship 2022"]
[Site "Linares"]
[Date "2022.08.16"]
[Round "7.29"]
[White "Garcia Garcia, Samuel"]
[Black "Del Prado Rodriguez, Xulio"]
[Result "0-1"]
[ECO "E62"]
[WhiteElo "2084"]
[BlackElo "2282"]
[Annotator "TA"]
[PlyCount "72"]
[EventDate "2022.08.11"]
[EventType "swiss"]
[EventCountry "ESP"]
[SourceTitle "playchess.com"]
[Source "ChessBase"]
[SourceQuality "1"]
[TimeControl "5400+30"]

{[%evp 16,72,50,31,43,17,34,22,14,0,22,0,0,0,27,-45,-26,-38,-42,-34,-30,-50,0,0,0,-92,-93,-175,-168,-157,-155,-251,-140,-156,-125,-399,-412,-360,-394,-371,-250,-246,-165,-256,-146,-160,-157,-164,0,0,0,0,0,0,-12,-138,-133,-29988,-29989]} 1. d4 {[%emt 0:00:05]} Nf6 {[%emt 0:00:19]} 2. c4 {[%emt 0:00:14]} g6 {[%emt 0:00:20]} 3. g3 {[%emt 0:00:54]} Bg7 {[%emt 0:00:23]} 4. Bg2 {[%emt 0:00:14]} O-O {[%emt 0:00:15]} 5. Nf3 {[%emt 0:00:11][%cal Bg1f3,Bf3e1,Be1d3][%mdl 32]} d6 {[%emt 0:00:35]} 6. O-O {[%emt 0:00:12]} Nc6 {[%emt 0:06:06]} 7. Nc3 {[%emt 0:02:21]} e5 {[%emt 0:00:06]} 8. d5 {[%emt 0:02:37]} Nb8 {is now debated instead of 8...Ne7.} 9. e4 {[%emt 0:00:19]} a5 {[%emt 0:00:13] E62: King's Indian: Fianchetto: 6...c6 and Panno Variation (6...Nc6) without ...a6.} 10. Ne1 {[%emt 0:01:04]} Na6 {[%emt 0:02:15]} 11. Nd3 {[%emt 0:02:10]} Nd7 {[%emt 0:00:07] The position is equal.} 12. Be3 {[%emt 0:04:15]} f5 {[%emt 0:07:01][%cal Of5f4]} 13. f3 {[%emt 0:03:18]} b6 {[%emt 0:12:58] [#]} 14. b3 $146 {[%emt 0:07:04]} ({Predecessor:} 14. a3 Nac5 15. b4 axb4 16. Nxb4 Nf6 17. Nc6 Qe8 18. Nb5 Rf7 19. Qc2 Bb7 20. Bh3 Bxc6 21. dxc6 fxe4 22. Bxc5 dxc5 23. fxe4 Qxc6 {0-1 (48) Lodhi,M (2315)-Koustav,C (2431) Dhaka 2021}) 14... Ndc5 {[%emt 0:15:51]} 15. a3 {[%emt 0:08:56]} (15. Ne1 $11) 15... f4 $15 {[%emt 0:04:04]} 16. Bf2 {[%emt 0:04:35]} Nxd3 {[%emt 0:03:11]} 17. Qxd3 {[%emt 0:00:11]} h5 {[%emt 0:00:09]} 18. Rab1 {[%emt 0:06:56]} g5 {[%emt 0:00:25]} ({Better is} 18... Nc5 $15 19. Qc2 a4) 19. b4 $11 {[%emt 0:03:01]} g4 {[%emt 0:07:50]} 20. c5 {[%emt 0:07:59]} (20. Be1 $11) 20... bxc5 $17 {[%emt 0:09:43][%cal Ra5b4]} 21. bxc5 {[%emt 0:03:00]} (21. bxa5 $17 {might work better.} c4 22. Qe2 (22. Qxc4 $2 fxg3 23. Bxg3 h4 $17)) 21... Nxc5 $19 {[%emt 0:05:43]} 22. Bxc5 {[%emt 0:04:43]} dxc5 {[%emt 0:00:14]} (22... Ba6 23. Nb5 dxc5 24. Qc3 $17) 23. Rfd1 {[%emt 0:04:57]} (23. Qc4 $17) 23... Ba6 {[%emt 0:11:19]} (23... fxg3 $19 24. fxg4 (24. hxg3 $2 gxf3 25. Bxf3 Qg5 $19) 24... gxh2+ 25. Kh1 Bxg4) 24. Nb5 $17 {[%emt 0:01:06]} Qg5 {[%emt 0:02:03]} 25. d6 $2 {[%emt 0:04:30][%mdl 8192]} (25. fxg4 $17 Rab8 26. a4) 25... c6 $1 $19 {[%emt 0:04:45]} (25... fxg3 $2 26. dxc7 gxf3 27. Bxf3 $19) 26. Qb3+ {[%emt 0:00:10]} c4 $1 {[%emt 0:00:07]} 27. Qxc4+ {[%emt 0:00:47]} Kh8 {[%emt 0:00:08]} 28. Qxc6 fxg3 {[%emt 0:02:14]} 29. fxg4 {[%emt 0:03:26] [#]} (29. Qc1 $142 gxh2+ 30. Kh1 Qxc1 31. Rdxc1 gxf3 32. Bh3) 29... gxh2+ {[%emt 0:02:09]} ({Inferior is} 29... hxg4 30. d7 $11) (29... Qxg4 30. h3 Bxb5 31. Qxb5 $14) ({Black should play} 29... Rac8 $1 $19 {[%cal Rc8c6]} 30. Nc7 (30. Qxa6 Rc2 $19) 30... Be2) 30. Kh1 $17 {[%emt 0:00:06]} Qxg4 {[%emt 0:00:12][%cal Of8f2] ( -> ...Rf2!)} (30... hxg4 $2 31. Nc7 Be2 32. Nxa8 $18) 31. Rf1 {[%emt 0:00:19] [#] Inhibits Rf2.} Bxb5 $2 {[%emt 0:03:09] Dancing on a razor blade.} (31... Rac8 $1 $19 {[%cal Rc8c6]} 32. Rxf8+ (32. Qxa6 {is a self mate.} Rc2) 32... Rxf8) 32. Qxb5 $11 {[%emt 0:00:08]} h4 $40 {[%emt 0:00:44][%mdl 128] Hoping for ...h3. White needs to defend precisely.} 33. Qd3 {[%emt 0:00:18] Inhibits h3.} Rad8 {[%emt 0:00:42]} 34. Rxf8+ {[%emt 0:02:02]} Bxf8 {[%emt 0:00:34]} 35. Bh3 {[%emt 0:00:19]} (35. Qf1 $11 {remains equal.} Qg5 36. d7) 35... Rxd6 $17 {[%emt 0:00:38] ...Qg1+ is the strong threat.} 36. Qxd6 $4 {[%emt 0:00:17][%mdl 8192]} (36. Qf1 $17 Qg1+ 37. Qxg1 hxg1=N 38. Kxg1) 36... Qxe4+ {[%emt 0:00:05] Weighted Error Value: White=0.75/Black=0.24 (precise)} 0-1

[Event "87th Spanish Championship 2022"]
[Site "Linares"]
[Date "2022.08.16"]
[Round "7.30"]
[White "Esquivias Quintero, Luis Manuel"]
[Black "Vidal del Rio, Manuel"]
[Result "1-0"]
[ECO "C88"]
[WhiteElo "2299"]
[BlackElo "2092"]
[Annotator "TA"]
[PlyCount "145"]
[EventDate "2022.08.11"]
[EventType "swiss"]
[EventCountry "ESP"]
[SourceTitle "playchess.com"]
[Source "ChessBase"]
[SourceQuality "1"]
[TimeControl "5400+30"]

{[%evp 22,145,15,1,12,6,15,13,12,10,0,0,8,1,6,0,0,-18,-17,-59,-10,-43,-29,-51,-35,-36,-33,-31,-43,-50,-47,-52,-53,-77,-73,-89,-79,-93,-77,-79,-91,-108,-67,-110,-101,-135,-107,-118,0,0,0,0,0,0,0,0,0,0,0,0,0,0,0,0,0,0,0,0,0,0,0,0,0,0,0,0,0,0,0,0,0,0,0,0,0,0,0,0,18,18,18,18,18,18,12837,12837,12837,12838,12833,0,12840,12840,12841,12840,12850,27999,27992,27997,27998,27998,27994,27998,27999,27996,27999,27999,27996,27999,27997,27997,27999,27999,27993,27993,27996,27996]} 1. e4 {[%emt 0:07:18]} e5 {[%emt 0:00:12]} 2. Nf3 {[%emt 0:00:05]} Nc6 {[%emt 0:00:12]} 3. Bb5 {[%emt 0:00:05][%cal Bf1b5,Bb5a4,Ba4b3,Bb3a2][%mdl 32]} a6 {[%emt 0:00:14]} 4. Ba4 {[%emt 0:00:04]} Nf6 {[%emt 0:00:11]} 5. O-O {[%emt 0:00:06]} Be7 {[%emt 0:00:07]} 6. Re1 {[%emt 0:00:07]} b5 {[%emt 0:00:07]} 7. Bb3 {[%emt 0:00:03]} O-O {[%emt 0:00:14]} 8. a4 {[%emt 0:00:06]} Bb7 {[%emt 0:00:06]} 9. d3 d6 {[%emt 0:00:07]} 10. Bd2 {[%emt 0:00:48]} Qd7 {[%emt 0:00:09]} 11. Nc3 {[%emt 0:10:16][%cal Bb1c3,Bc3e2,Be2g3,Bg3f5,Bf5e3,Be3c4][%mdl 32]} Na5 {[%emt 0:00:13]} 12. Ba2 {[%emt 0:00:09]} b4 {[%emt 0:00:12] C88: Closed Ruy Lopez: Anti-Marshall Systems.} 13. Ne2 {[%emt 0:00:33]} c5 {[%emt 0:00:10]} 14. Ng3 {[%emt 0:09:38]} Rab8 {[%emt 0:03:20] The position is equal.} 15. Nf5 {[%emt 0:15:04]} Bc8 {[%emt 0:00:31]} (15... Bd8 {is more complex.} 16. Ng5 Nc6 17. h3 Nd4) 16. Ne3 {[%emt 0:06:44] [#]} Qc7 $146 {[%emt 0:19:00]} ({Predecessor:} 16... Qd8 17. Nc4 Nc6 18. c3 Ne8 19. Ne3 Nc7 20. Nd5 Be6 21. Be3 bxc3 22. bxc3 Na5 {½-½ (72) Petrova,K (2274)-Hebden,M (2477) Dundee 2017}) 17. Nc4 {[%emt 0:01:49]} Nc6 {[%emt 0:08:13]} 18. h3 {[%emt 0:07:36]} h6 {[%emt 0:13:19]} 19. Bb3 {[%emt 0:04:26]} Be6 {[%emt 0:13:10]} 20. Qb1 {[%emt 0:01:38]} Nh5 {[%emt 0:03:17]} (20... Nd4 $15 21. Nxd4 cxd4) 21. Qa2 {[%emt 0:02:40]} Nf4 {[%emt 0:04:37]} 22. Ne3 {[%emt 0:11:50]} Bxb3 {[%emt 0:17:37]} 23. Qxb3 {[%emt 0:00:33]} Na5 {[%emt 0:00:01]} (23... Rfd8 {keeps more tension.} 24. Nf5 Na5 25. Qa2 b3) 24. Qa2 {[%emt 0:00:48]} b3 {[%emt 0:00:01]} 25. Qb1 {[%emt 0:03:00]} bxc2 {[%emt 0:00:15]} 26. Qxc2 {[%emt 0:00:08]} Nb3 $36 {[%emt 0:00:12][%mdl 2048] Black is pushing.} 27. Rab1 {[%emt 0:05:04]} Qd7 {[%emt 0:02:19]} 28. a5 {[%emt 0:01:26]} Rb5 {[%emt 0:01:00]} 29. Nc4 {[%emt 0:01:09]} Ne6 {[%emt 0:01:13]} 30. Bc3 {[%emt 0:01:26]} Bd8 {[%emt 0:00:31]} 31. Nfd2 {[%emt 0:00:56]} Ned4 {[%emt 0:02:46]} ({Reject} 31... Nxa5 $6 32. Ra1 Nd4 33. Qd1 (33. Bxd4 exd4 34. Reb1 Re8 $15) 33... Nxc4 34. Nxc4 $15) 32. Bxd4 {[%emt 0:00:04]} Nxd4 {[%emt 0:00:08]} 33. Qc3 {[%emt 0:03:17]} Bg5 {[%emt 0:02:07]} 34. Nb6 {[%emt 0:01:38]} Bxd2 {[%emt 0:00:16]} 35. Nxd7 $11 {[%emt 0:02:13]} Bxc3 {[%emt 0:00:10]} 36. bxc3 {[%emt 0:00:00]} Rd8 {[%emt 0:04:31]} 37. cxd4 {[%emt 0:00:17]} Rxd7 {[%emt 0:00:06]} 38. Rxb5 {[%emt 0:00:16]} axb5 {[%emt 0:00:00]} 39. dxc5 {[%emt 0:00:39]} dxc5 {[%emt 0:00:11][%mdl 4096] Endgame KR-KR} 40. Rc1 {[%emt 0:01:48]} Rc7 {[%emt 0:05:13]} 41. a6 {[%emt 0:00:27][%cal Oa6a7]} f6 {[%emt 0:01:26]} 42. Ra1 {[%emt 0:01:19] [#] a7 is the strong threat.} Ra7 {[%emt 0:00:01]} 43. Ra5 {[%emt 0:00:50]} b4 {[%emt 0:00:57]} 44. Kf1 {[%emt 0:01:08]} Kf7 {[%emt 0:01:15]} 45. Ke2 {[%emt 0:00:09]} Ke6 {[%emt 0:00:02]} 46. Rxc5 {[%emt 0:00:35]} Rxa6 {[%emt 0:00:04]} 47. Rb5 {[%emt 0:00:03]} Ra2+ {[%emt 0:00:09]} 48. Ke3 {[%emt 0:00:03]} Rb2 {[%emt 0:00:04]} 49. Rb6+ {[%emt 0:02:00]} Kf7 {[%emt 0:02:32]} 50. Rb7+ {[%emt 0:00:06]} Kg6 {[%emt 0:00:35]} 51. g4 {[%emt 0:00:14]} b3 {[%emt 0:01:01]} 52. h4 {[%emt 0:00:06]} h5 {[%emt 0:00:30]} 53. gxh5+ {[%emt 0:00:27]} Kh6 {[%emt 0:00:00]} 54. f4 {[%emt 0:02:16]} Kxh5 {[%emt 0:01:42]} 55. fxe5 {[%emt 0:00:31]} fxe5 {[%emt 0:00:11]} 56. Rxg7 {[%emt 0:01:13] Strongly threatening Rg5+.} Kxh4 {[%emt 0:00:02]} 57. Re7 {[%emt 0:00:54]} Rc2 $2 {[%emt 0:01:26][%mdl 8192] White stays focused until the end.} (57... Rb1 $11 58. Kd2 Ra1) 58. Rxe5 $18 {[%emt 0:00:32]} b2 {[%emt 0:00:06]} 59. Rb5 {[%emt 0:00:01]} Kg4 {[%emt 0:00:18]} 60. d4 $2 {[%emt 0:00:53]} (60. Rb8 $18 Rg2 61. Rb4) 60... Rh2 $2 {[%emt 0:01:14][%mdl 8192]} (60... Rc3+ $11 61. Kd2 Rg3) 61. Kd3 {[%emt 0:00:37]} Rh3+ {[%emt 0:00:25] [#]} 62. Kc4 $1 {[%emt 0:00:07]} Kf4 {[%emt 0:00:17]} 63. Rxb2 {[%emt 0:00:08]} (63. e5 Rh2 64. Kd5 Kf5) 63... Kxe4 {[%emt 0:00:16] White mates.} 64. Re2+ {[%emt 0:00:01]} Kf5 {[%emt 0:00:19]} 65. d5 {[%emt 0:00:06][%cal Bd4d5,Bd5d6,Bd6d7][%mdl 32]} Kf6 {[%emt 0:00:31]} 66. Kc5 {[%emt 0:00:12]} Rc3+ {[%emt 0:00:32]} 67. Kd6 {[%emt 0:00:06]} Kf7 {[%emt 0:00:13]} 68. Kd7 {[%emt 0:00:07]} Kf8 {[%emt 0:00:13]} 69. Rf2+ {[%emt 0:00:05]} Kg7 {[%emt 0:00:08]} 70. d6 {[%emt 0:00:02]} Rc1 {[%emt 0:00:22]} 71. Kd8 {[%emt 0:00:20]} Rd1 {[%emt 0:00:08]} 72. d7 {[%emt 0:00:03]} Rd3 {[%emt 0:00:09]} 73. Rc2 {[%emt 0:00:05] Weighted Error Value: White=0.15 (very precise) /Black=0.08 (flawless)} 1-0

[Event "87th Spanish Championship 2022"]
[Site "Linares"]
[Date "2022.08.16"]
[Round "7.31"]
[White "Gonzalez Guedes, Iyan"]
[Black "Aguado Doncel, Pablo Luis"]
[Result "1-0"]
[ECO "A00"]
[WhiteElo "2250"]
[BlackElo "2029"]
[Annotator "NA RC"]
[PlyCount "32"]
[EventDate "2022.08.11"]
[EventType "swiss"]
[EventCountry "ESP"]
[SourceTitle "playchess.com"]
[Source "ChessBase"]
[SourceQuality "1"]
[TimeControl "5400+30"]

1. g3 {[%emt 0:00:00]} Nf6 {[%emt 0:01:05]} 2. Bg2 {[%emt 0:00:14]} d5 {[%emt 0:01:06]} 3. d3 {[%emt 0:00:30]} c6 {[%emt 0:00:36]} 4. Nd2 {[%emt 0:00:13]} Bf5 {[%emt 0:00:59]} 5. e4 {[%emt 0:00:14]} Bg6 {[%emt 0:01:46]} 6. Qe2 {[%emt 0:00:34]} e6 {[%emt 0:00:33]} 7. Nh3 {[%emt 0:00:19]} h6 {[%emt 0:01:15]} 8. O-O {[%emt 0:00:08]} Be7 {[%emt 0:01:45]} 9. f4 {[%emt 0:00:28]} O-O {[%emt 0:01:31]} 10. g4 {[%emt 0:00:41]} dxe4 {[%emt 0:06:48]} 11. dxe4 Na6 {[%emt 0:01:29]} 12. e5 {[%emt 0:11:57]} Nd5 {[%emt 0:03:30]} 13. Ne4 {[%emt 0:05:34]} f5 {[%emt 0:11:53]} 14. exf6 {[%emt 0:01:30]} Nxf6 {[%emt 0:00:29]} 15. Nxf6+ {[%emt 0:01:19]} Bxf6 {[%emt 0:02:41]} 16. Kh1 {[%emt 0:10:28]} Nb4 {[%emt 0:12:54]} 1-0

[Event "87th Spanish Championship 2022"]
[Site "Linares"]
[Date "2022.08.16"]
[Round "7.32"]
[White "Garcia Gonzalez, Omar"]
[Black "Lopez Varela, Pablo"]
[Result "0-1"]
[ECO "C22"]
[WhiteElo "2094"]
[BlackElo "2158"]
[Annotator "TA"]
[PlyCount "50"]
[EventDate "2022.08.11"]
[EventType "swiss"]
[EventCountry "ESP"]
[SourceTitle "playchess.com"]
[Source "ChessBase"]
[SourceQuality "1"]
[TimeControl "5400+30"]

{[%evp 10,50,8,0,68,66,55,54,31,30,41,-20,0,-17,0,-63,-27,-119,-92,-119,-118,-116,-48,-82,0,-97,-64,-237,-172,-149,-135,-148,-15,-14,0,-84,25,-29994,-29995,-29996,-29997,-29997,-29998]} 1. e4 e5 {[%emt 0:00:05]} 2. d4 {[%emt 0:00:09]} exd4 {[%emt 0:00:43]} 3. Qxd4 {[%emt 0:00:07]} Nc6 {[%emt 0:01:54]} 4. Qe3 {[%emt 0:00:06]} g6 {[%emt 0:00:29]} 5. Nc3 Bg7 {[%emt 0:00:34]} 6. Bd2 {[%emt 0:00:16]} Nge7 {[%emt 0:00:29] C22: Centre Game.} (6... Nf6 $1 $11) 7. O-O-O $14 {[%emt 0:00:14]} d6 {[%emt 0:00:33]} 8. f4 {[%emt 0:02:57]} O-O {[%emt 0:05:11] [#] White is slightly better.} 9. h4 $146 {[%emt 0:06:42]} ({Predecessor:} 9. h3 d5 10. exd5 Nxd5 11. Qf3 Be6 12. Be1 Qf6 13. Nge2 Rad8 14. a3 b5 15. g4 {0-1 (25) Mihailidou,M (1754)-Davison,C (2068) London 2018}) 9... h5 {[%emt 0:01:14]} 10. Be1 {[%emt 0:09:56]} (10. f5 $14) 10... Re8 {[%emt 0:06:56][%cal Oc6d4]} 11. Qg3 {[%emt 0:04:21]} a6 {[%emt 0:05:34]} 12. Be2 {[%emt 0:06:14]} (12. Bd2 $1 $11) 12... b5 {[%emt 0:06:37][%cal Bb7b5,Bb5b4][%mdl 32]} 13. Bf3 {[%emt 0:13:47]} (13. f5 $1 $11) 13... Rb8 {[%emt 0:09:30]} 14. Nce2 {[%emt 0:11:50] [#]} b4 {[%emt 0:09:31] Against Bc3} 15. Bf2 {[%emt 0:13:47]} Rb5 {[%emt 0:06:59]} (15... a5 $17 {Hoping for ...a4.} 16. Qg5 a4) 16. Kb1 {[%emt 0:05:27]} Ra5 {[%emt 0:18:06]} (16... a5 $17) 17. f5 {[%emt 0:09:51]} (17. Nh3 $1 $11) 17... Qd7 {[%emt 0:07:48]} 18. Qg5 $2 {[%emt 0:03:48]} (18. Nh3 $15) 18... Ne5 {[%emt 0:02:02][%cal Re7f5] White must now prevent ...Nxf5!} 19. b3 {[%emt 0:03:11]} N7c6 {[%emt 0:08:11][%cal Oe5c4]} 20. Nh3 {[%emt 0:01:41]} Nxf3 {[%emt 0:04:44]} ({Black should try} 20... gxf5 $17 21. Rd5 fxe4 22. Bxe4 Rxd5 23. Bxd5 Ng4) 21. gxf3 $11 {[%emt 0:00:05]} Ne5 $36 {[%emt 0:00:31][%mdl 2048] Black has some pressure.} 22. Qf4 {[%emt 0:02:27]} (22. fxg6 $11 fxg6 23. Bd4) 22... Nc4 {[%emt 0:01:17]} 23. bxc4 $4 {[%emt 0:01:31][%mdl 8192] [#]} (23. Bd4 $11 Na3+ 24. Kb2) 23... Rxa2 $3 {[%emt 0:00:13][%csl Gg7][%cal Ra2a1][%mdl 512] Black mates.} 24. Kc1 {[%emt 0:03:26]} (24. Qe5 Bxe5) 24... Bc3 {[%emt 0:00:10]} 25. Nxc3 {[%emt 0:00:35]} bxc3 {[%emt 0:00:03] Weighted Error Value: White=0.75/Black=0.38} 0-1